Cogmind - Beta 13 @@@ ROGUE MODE // 2024.07.28 @ 00:23:57 Player: jagoly Result: Destroyed by as-65100 with Assembled Blade Performance ------------- Evolutions (0) 0 Regions Visited (2) 400 Robots Destroyed (25) 125 Value Destroyed (589) 589 Prototype IDs (3) 60 Alien Tech Used (0) 0 Bonus (0) 0 TOTAL SCORE: 1174 Bonus ------- None Cogmind --------- Core Integrity 0/250 Matter 266/300 Energy 100/100 System Corruption 3% Temperature Cool (0) Movement Core (350) Ox6 Location -10/Mines Parts ------- > --- POWER (1) -------- (None) > --- PROPULSION (2) --- (None) > --- UTILITY (2) ------ Large Storage Unit > --- WEAPON (2) ------- (None) > --- INVENTORY (15) --- Ion Engine Light Treads Light Treads Light Treads Aluminum Leg Aluminum Leg Improved Heat Sink Large Storage Unit Hacking Suite Beam Cannon Light Cannon Peak State ------------ > --- POWER ------------ Light Ion Engine > --- PROPULSION ------- Aluminum Leg Aluminum Leg > --- UTILITY ---------- Small Storage Unit Light Armor Plating > --- WEAPON ----------- Assault Rifle Assault Rifle > --- INVENTORY -------- Light Ion Engine Light Treads Light Treads Aluminum Leg Improved Heat Sink Large Storage Unit Medium Laser Grenade Launcher [Rating: 8] Favorites ----------- Power Ion Engine Engine Ion Engine Propulsion Aluminum Leg Leg Aluminum Leg Utility Large Storage Unit Device Heat Sink Storage Large Storage Unit Protection Light Armor Plating Weapon Assault Rifle Energy Gun Medium Laser Energy Cannon Beam Cannon Ballistic Gun Assault Rifle Ballistic Cannon Light Cannon Launcher Grenade Launcher Build | -11 -10 -10 ------- Run | Yrd Mat Min Slots Evolved . | . . . Power . | . . . Propulsion . | . . . Utility . | . . . Weapon . | . . . Parts Attached 32 | 6 25 1 Power 5 | 1 4 . Engine 5 | 1 4 . Core . | . . . Reactor . | . . . Propulsion 12 | 2 10 . Treads . | . . . Leg 12 | 2 10 . Wheel . | . . . Hover . | . . . Flight . | . . . Utility 7 | 1 6 . Device 3 | . 3 . Storage 3 | 1 2 . Processor . | . . . Hackware . | . . . Protection 1 | . 1 . Artifact . | . . . Weapon 8 | 2 5 1 Energy Gun 2 | . 2 . Energy Cannon 1 | . 1 . Ballistic Gun 3 | 2 1 . Ballistic Cannon 1 | . 1 . Launcher 1 | . . 1 Special Weapon . | . . . Impact Weapon . | . . . Slashing Weapon . | . . . Piercing Weapon . | . . . Special Melee Weapon . | . . . Unidentified Prototypes . | . . . Parts Lost 11 | . 5 6 Power 3 | . 2 1 Propulsion 2 | . . 2 Utility 2 | . 1 1 Weapon 4 | . 2 2 Highest Loss Streak 6 | . 3 6 To Critical Strikes . | . . . Average Slot Usage (%) 96 | . 96 97 Engine 12 | . 12 13 Leg 27 | . 27 27 Device 7 | . 4 13 Storage 14 | . 14 14 Protection 6 | . 8 . Energy Gun 6 | . 2 14 Energy Cannon 7 | . 4 13 Ballistic Gun 12 | . 18 . Naked Turns . | . . . Heaviest Build 32 | 12 32 31 Greatest Support 20 | 20 20 20 Greatest Overweight (x) 2 | 2 2 1 Average Overweight (x) . | . . 1 Largest Inventory Capacity 15 | 8 15 15 Average Capacity 13 | 6 12 15 Most Carried 12 | 4 12 11 Average Carried 8 | 2 8 11 Final Capacity 15 | 8 15 15 Final Carried 11 | 4 11 11 Class Distribution -------------------- 94% | Mutant 5% | Scavenger-Mutant Dominant Class ---------------- Mutant | -10/Materials Mutant | -10/Mines Resources | -11 -10 -10 ----------- Run | Yrd Mat Min Matter Collected 896 | 194 562 140 Remotely . | . . . Salvage Created 807 | . 693 114 Parts 50 | . 45 5 Haulers Intercepted 1 | . 1 . Recyclers Shooed . | . . . Parts Field Recycled . | . . . Retrieved Matter . | . . . Parts Self-Destructed . | . . . Prevented . | . . . Kills | -11 -10 -10 ------- Run | Yrd Mat Min Combat Hostiles Destroyed 27 | . 16 11 Guns 13 | . 11 2 Cannons 6 | . 5 1 AOE 8 | . . 8 Classes Destroyed 8 | . 6 2 Builder 1 | . 1 . Hauler 1 | . 1 . Recycler 1 | . . 1 Operator 1 | . 1 . Watcher 2 | . 2 . Swarmer 6 | . 3 3 Grunt 13 | . 13 . Assembled 8 | . . 8 Best Kill Streak 9 | . 4 9 Combat Bots Only 8 | . 4 8 Max Kills in Single Turn 4 | . 2 4 Gunslinging 1 | . 1 . Exploded 4 | . . 4 Melee . | . . . Uniques/NPCs Destroyed . | . . . Combat | -11 -10 -10 -------- Run | Yrd Mat Min Hostile Shots Fired 137 | . 92 45 Missed 44 | . 28 16 Damage Taken 1263 | . 661 602 Core 261 | . 95 166 Absorbed by Shields . | . . . Core Remaining (%) 100 | 100 . . Volleys Fired 86 | . 71 15 Largest 2 | . 2 2 Hottest 110 | . 110 110 Shots Fired 158 | . 137 21 Gun 130 | . 120 10 Cannon 23 | . 17 6 Launcher 5 | . . 5 Special . | . . . Kinetic 123 | . 123 . Thermal 30 | . 14 16 Explosive 5 | . . 5 Electromagnetic . | . . . Robot Hit Streak 9 | . 9 4 Robot Miss Streak 6 | . 6 2 Penetration Max . | . . . Secondary Targets 2 | . 2 . Max Gunslinging Chain 1 | . 1 . Shots Hit Robots 82 | . 69 13 Core Hits 55 | . 33 22 Critical Kills . | . . . Critical Parts Destroyed . | . . . Critical Strikes . | . . . Melee Attacks . | . . . Impact . | . . . Slashing . | . . . Piercing . | . . . Sneak Attacks . | . . . Combat Hostiles . | . . . Follow-up Attacks . | . . . Damage Inflicted 1702 | . 968 734 Guns 839 | . 766 73 Cannons 250 | . 196 54 Explosions 605 | . . 605 Melee . | . . . Ramming 8 | . 6 2 Kinetic 804 | . 804 . Thermal 285 | . 158 127 Explosive 605 | . . 605 Electromagnetic . | . . . Impact . | . . . Slashing . | . . . Piercing . | . . . Highest Corruption 3 | . 2 3 Average Corruption 2 | . 2 2 Corruption Purged . | . . . Corruption Blocked . | . . . Effects 19 | . 16 3 Message Errors 4 | . 2 2 Matter Fused 7 | . 7 . Heat Flow Errors 2 | . 1 1 Energy Discharges 3 | . 3 . Data Loss (minor) 1 | . 1 . Data Loss (major) 1 | . 1 . Misfires 1 | . 1 . Overload Shots . | . . . Overflow Damage 50 | . 4 46 Projectiles 4 | . 4 . Explosions 46 | . . 46 Melee . | . . . Knockbacks . | . . . Impact . | . . . Kinetic . | . . . Secondary . | . . . Self-Inflicted Damage 145 | . . 145 Shots 5 | . . 5 Rammed 2 | . . 2 Targets Rammed 4 | . 1 3 Kicked 2 | . 1 1 Crushed . | . . . Highest Temperature 278 | . 278 137 Average Temperature 86 | . 108 31 Received Heat Transfer 395 | . 315 80 Siege Activations . | . . . Robots Corrupted . | . . . Combat Hostiles . | . . . Parts Fried . | . . . Impact Corruptions . | . . . Robots Melted . | . . . Combat Hostiles . | . . . Parts Melted . | . . . Heat Transferred 666 | . 333 333 Parts Sabotaged . | . . . Parts Stolen . | . . . Parts Stripped . | . . . Power Chain Reactions . | . . . Alert | -11 -10 -10 ------- Run | Yrd Mat Min Peak Influence 213 | . 213 147 Initial 47 | . . 47 Average 77 | . 84 70 Maximum Alert Level 1 | . 1 . Low Security (%) 93 | 100 90 100 Level 1 6 | . 9 . Level 2 . | . . . Level 3 . | . . . Level 4 . | . . . Level 5 . | . . . High Security . | . . . Max Security . | . . . Squads Dispatched 5 | . 5 . Investigation 3 | . 3 . Extermination . | . . . Reinforcement 2 | . 2 . Assault . | . . . Garrison . | . . . Intercept . | . . . Searches Triggered . | . . . Construction Impeded . | . . . Haulers Reinforced . | . . . Active Scanning Responses . | . . . Cargo Convoy Interrupts . | . . . Stealth | -11 -10 -10 --------- Run | Yrd Mat Min Distress Signals . | . . . Communications Jammed . | . . . Distress Signals . | . . . Times Spotted 43 | . 22 21 Peak Tracking Total 10 | . 5 10 Tactical Retreats 2 | . . 2 Traps | -11 -10 -10 ------- Run | Yrd Mat Min Traps Triggered 5 | . 5 . Indirectly . | . . . Trap Hack Attempts . | . . . Triggered . | . . . Disarmed . | . . . Reprogrammed . | . . . Reused . | . . . Traps Extracted . | . . . Installed . | . . . Triggered . | . . . Machines | -11 -10 -10 ---------- Run | Yrd Mat Min Machines Disabled . | . . . Max in Single Turn . | . . . Machines Repaired . | . . . Machines Dismantled . | . . . Machines Sabotaged . | . . . Overloaded Fab Kills . | . . . Hacking | -11 -10 -10 --------- Run | Yrd Mat Min Machines Accessed 6 | . 6 . Terminals 6 | . 6 . Fabricators . | . . . Repair Stations . | . . . Recycling Units . | . . . Scanalyzers . | . . . Garrison Access . | . . . Total Hacks 21 | . 21 . Successful 5 | . 5 . Failed 16 | . 16 . Catastrophic 6 | . 6 . Database Lockouts . | . . . Manual 4 | . 4 . Terminals 21 | . 21 . Fabricators . | . . . Repair Stations . | . . . Recycling Units . | . . . Scanalyzers . | . . . Garrison Access . | . . . Terminal Hacks 5 | . 5 . Prototype ID Bank 2 | . 2 . Emergency Access Points 1 | . 1 . Hauler Manifests 1 | . 1 . Registered Components 1 | . 1 . Fabricator Hacks . | . . . Repair Station Hacks . | . . . Recycling Unit Hacks . | . . . Scanalyzer . | . . . Garrison Access Hacks . | . . . Unauthorized Hacks . | . . . Terminals . | . . . Fabricators . | . . . Repair Stations . | . . . Recycling Units . | . . . Scanalyzers . | . . . Garrison Access . | . . . Data Cores Recovered . | . . . Used . | . . . Hacking Detections 6 | . 6 . Full Trace Events 1 | . 1 . Feedback Events . | . . . Feedback Blocked . | . . . Robot Schematics Acquired . | . . . Robots Built . | . . . Authchips . | . . . Time . | . . . Total Robot Build Rating . | . . . Part Schematics Acquired . | . . . Parts Built . | . . . Authchips . | . . . Time . | . . . Total Part Build Rating . | . . . Parts Repaired . | . . . Time . | . . . Parts Recycled . | . . . Recycled Matter . | . . . Retrieved Matter . | . . . Retrieved Components . | . . . Parts Scanalyzed . | . . . Part Schematics Acquired . | . . . Parts Damaged . | . . . Bothacking | -11 -10 -10 ------------ Run | Yrd Mat Min Used RIF Installer . | . . . Robots Hacked . | . . . Non-combat . | . . . Combat . | . . . Robot Hacks Applied . | . . . Relay Couplers Released . | . . . Fabnet Peak Effective % . | . . . Robots Rewired . | . . . Allies Hacked . | . . . Hacks Repelled . | . . . Allies | -11 -10 -10 -------- Run | Yrd Mat Min Total Allies . | . . . Largest Group . | . . . Highest-Rated Group . | . . . Highest-Rated Ally . | . . . Total Orders . | . . . Ally Attacks . | . . . Total Damage . | . . . Kills . | . . . Allies Corrupted . | . . . Allies Melted . | . . . Intel | -11 -10 -10 ------- Run | Yrd Mat Min Robot Analysis Total . | . . . Derelict Logs Recovered 1 | . . 1 Drone Launches . | . . . Drone Recoveries . | . . . Exploration | -11 -10 -10 ------------- Run | Yrd Mat Min Turns Passed 1683 | 68 1146 469 Spaces Moved 807 | 47 537 223 Core 21 | 21 . . Treads . | . . . Legs 786 | 26 537 223 Wheels . | . . . Hover . | . . . Flight . | . . . Fastest Speed 50 | 50 120 190 Average Speed 167 | 110 163 190 Slowest Speed 260 | 150 260 190 Overloaded Moves . | . . . Propulsion Burnouts . | . . . Robots Hopped . | . . . Cave-ins Triggered . | . . . Exploration Rate (%) 47 | 4 83 56 Regions Visited 2 Branch Regions 1 Pre-discovered Areas . | . . . Known Exits Taken . | . . . Unknown Exits Taken 2 | 1 1 . Scrap Searched . | . . . Spaces Dug . | . . . Terrain Destroyed 14 | . . 14 Melee . | . . . Projectile . | . . . AOE 14 | . . 14 Terrain Rammed . | . . . Walls Destroyed . | . . . Machines Disabled . | . . . Actions | -11 -10 -10 --------- Run | Yrd Mat Min Total 966 | 60 664 242 Wait 13 | 4 9 . Move 805 | 46 536 223 Hop . | . . . Pick Up 14 | 4 10 . Fast Attach 16 | 6 10 . Attach 3 | . 3 . Detach . | . . . Swap 13 | . 12 1 Drop 12 | . 12 . Fire 86 | . 71 15 Melee . | . . . Ram 2 | . . 2 Kick 2 | . 1 1 Crush . | . . . Escape Stasis . | . . . Rewire . | . . . Trap . | . . . Miscellaneous . | . . . Route ------- -11/Scrapyard -10/Materials (discovered 3 exits: [*Mat] / [*Min x2]) -10/Mines (discovered 1 exit: [*Mat]) History --------- Turn | Location | Event 25 | -11/Scrapyard | Discovered new exit (range 15) 69 | -11/Scrapyard | Entered Materials 253 | -10/Materials | Discovered new exit (range 6) 270 | -10/Materials | Discovered new exit (range 14) 307 | -10/Materials | Build established: Mutant 394 | -10/Materials | Discovered new exit (range 15) 849 | -10/Materials | Lost 3 parts (1u2w) 1215 | -10/Materials | Entered Mines 1310 | -10/Mines | Discovered new exit (range 14) 1455 | -10/Mines | Learned Materials terminal intel 1637 | -10/Mines | Assembled infested the area 1642 | -10/Mines | Assisted by a Guerilla fighting off Assembled 1662 | -10/Mines | Core integrity fell below 50% 1682 | -10/Mines | Destroyed 8 combat bots 1683 | -10/Mines | Core integrity fell below 20% 1684 | -10/Mines | Destroyed by as-65100 with Assembled Blade Last Messages --------------- 01659_ as-67751 destroyed. 01659_ as-51739 destroyed. 01661_ as-49981 destroyed. 01661_ Destroyed Asb. F-torch. 01661_ as-80378 destroyed. 01663_ Grenade Launcher destroyed. 01663_ Destroyed Grenade Launcher. 01667_ Destroyed Asb. Hover Unit. 01676_ K-01 Serf collects debris. 01676_ Aluminum Leg destroyed. 01677_ Kicked as-65100. 01679_ as-04034 destroyed. 01679_ Aluminum Leg destroyed. 01679_ Heat Sink destroyed. 01679_ System corrupted by crushing effect (+1). 01679_ Slammed into as-65100. 01680_ The unstable cave ceiling collapses. 01680_ Med. Laser destroyed. 01682_ K-01 Serf collects debris. 01683_ Slammed into as-65100. Map ----- +----------------------------------------------------+ | ??? ????????????????????????????????????????????? | | ??? """ ##??????????????????????????????????????? | | ???? """ #??????????????????????????????????????? | | ???? ???????????????????????????????????????? | | ????# #???????????????????????????????????????? | | ???## ????????????????????????????????????????? | | ???# ?????????????????????????????????????????? | | ???# #?????????????????????????????????????????? | | ???# ##????????????????????????????????????????? | | ??## ##???????????????????????????????????????? | | ### ##??????????????????????????????????????? | | ## ##?????????????????????????????????????? | | #?????????????????????????????????????? | | #?????????????????????????????????????? | | ##?????????????????????????????????????? | | ## #??????????????????????????????????????? | | ### ### ##?????????????????????????????????????? | | ??####?## ##????????????????????????????????????? | | ????????## ##?????????###???????????????????????? | | ?????????# ##???????? #???????????????????????? | | ?????????# ##???????# #???????????????????????? | | ?????????# #???????# #???????????????????????? | | ?????????## #??????## #???????????????????????? | | ??????????# #?????## ####?#??????????????????? | | ??????????## ##?????# # # ##?????????????????? | | ???????????# ##??????# a@a ##????????????????? | | ???????????# #???????## a #????????????????? | | ???????????# #????????# a ### #???????????? | | ???????????# ##########d #???????????? | | ???????????# = [ #???????????? | | ???????????###### ! ## ###???????????? | | ????????????????# ##### k ##?#?????????????? | | ?????????##???### #???## ##????????????????? | | ????????# ##?## ##???## # ###?????????????????? | | ???????# ###! #????# ###???????????????????? | | ??????# ### #????# #?????????????????????? | | ?????# ##! ] ##???? #?????????????????????? | | ???## #?# ! ##???? #?????????????????????? | | ??## #?# ##???? #?????????????????????? | | ### #??# #???? #?????????????????????? | | ## ##??# #???# ##?????????????????????? | | ##???## #???## #??????????????????????? | | ##?????## #????## ???????????????????????? | | ######??# #?????? ???????????????????????? | | ## #### #??????? ???????????????????????? | | #????????????????????????????????? | | #####????????????????????????????????? | | !! ## ##????????????????????????????????????? | | ! ######?????????????????????????????????????? | | ! #??????????????????????????????????????????? | +----------------------------------------------------+ Best States ------------- Heat Dissipation 35 Energy Generation 10 Energy Capacity 250 Matter Stores 300 Matter Capacity 300 Sight Range 16 Terrain Scan Density 10 Armor Coverage 150 Evasion (%) 55 Item Schematics ----------------- None Robot Schematics ------------------ None Fabricated ------------ Nothing Alien Tech Used ----------------- None Achievements -------------- None Challenges ------------ None Game ------ Seed HybridDroneDisintegrator Manual? 0 Play Time 00:13:42 Cumulative 151.2 hours Start 2024.07.28 @ 00:12:21 End 2024.07.28 @ 00:23:57 Sessions 1 Manual Loads 0 Difficulty Rogue Special Mode None Game No. 53 Rogue 53 Adventurer 0 Explorer 0 Win Type - Total 1 Types 1/0/0/0/0/0/0/0/0 Lore% 55 Gallery% 62 Achievement% 47 Wizard Run 0 Options --------- Layout 0 ASCII 0 Keyboard 1 Movement Numpad Keybinds 0 Fullscreen 1 Font 18/X11Bold Map View 76x50 Zoom Use 0% Tactical HUD 1 Map Filters NONE Filters NONE Steam 1 RUN: 73fbe251-b275-4dd4-9c79-e677c416ceb0